bitfinex/quotes_SOLUSD_20250817
["timestamp","ask_amount","ask_price","bid_price","bid_amount"]
[1755469009782,3.50183943,191.81,191.79,3.42150039]
[1755469010085,0.06,191.82,191.8,4.11150039]
[1755469010287,0.06,191.82,191.81,3.42150039]
[1755469010688,0.06,191.82,191.81,4.11150039]
[1755469012986,0.06,191.82,191.81,3.42150039]
[1755469015795,0.77,191.82,191.78,15.10621557]
[1755469015977,0.71,191.81,191.78,15.10621557]
[1755469016177,0.71,191.81,191.8,3.42150039]
[1755469016878,5.92349251,191.81,191.8,3.42150039]
[1755469017377,5.21349251,191.81,191.8,3.42150039]
[1755469018489,5.27322072,191.82,191.8,3.42150039]
[1755469018687,18.30627253,191.82,191.76,5.212994]
[1755469018904,18.30627253,191.82,191.75,0.03]
[1755469018905,3.42150039,191.8,191.75,15.13621557]
[1755469019063,0.71,191.79,191.75,18.55771596]
[1755469019268,0.71,191.78,191.75,18.55771596]
[1755469019688,3.50477247,191.78,191.75,3.45150039]
[1755469019878,0.71,191.77,191.75,0.03]
[1755469020084,0.71,191.77,191.75,3.45150039]
[1755469020281,0.71,191.76,191.75,0.03]
[1755469020488,5.92485189,191.76,191.75,0.03]
[1755469021174,5.92485189,191.76,191.71,0.03]
[1755469021175,3.42150039,191.75,191.71,0.03]
[1755469021394,3.42150039,191.73,191.71,0.03]
[1755469021580,3.50477247,191.73,191.71,0.03]
[1755469021892,0.71,191.74,191.71,0.03]
[1755469022264,0.71,191.74,191.73,0.03]
[1755469022662,5.92539584,191.74,191.73,0.03]
[1755469022912,5.21539584,191.74,191.73,3.45150039]
[1755469023602,5.21539584,191.74,191.73,0.03]
[1755469025097,5.21485189,191.76,191.73,0.03]
[1755469025476,5.92485189,191.76,191.73,0.03]
[1755469025793,5.92485189,191.76,191.73,3.45150039]
[1755469026166,3.50279255,191.77,191.75,3.42150039]
[1755469026462,137.71428664,191.79,191.76,3.42150039]
[1755469026665,137.71428664,191.79,191.77,3.42150039]
[1755469026884,0.06,191.82,191.78,4.11150039]
[1755469027061,0.06,191.82,191.79,18.52771596]
[1755469027266,0.06,191.82,191.79,19.21771596]
[1755469028799,0.06,191.82,191.79,18.52771596]
[1755469030292,0.06,191.82,191.79,19.21771596]
[1755469031380,0.06,191.82,191.79,18.52771596]
[1755469034003,0.77,191.8,191.76,5.213156]
[1755469034291,4.19150039,191.8,191.75,3.42150039]
[1755469034493,4.13150039,191.79,191.74,18.52771596]
[1755469034668,3.42150039,191.79,191.74,18.52771596]
[1755469034997,0.72,191.78,191.74,18.52771596]
[1755469035292,3.42150039,191.79,191.74,18.52771596]
[1755469035501,0.72,191.77,191.74,18.52771596]
[1755469036093,0.72,191.76,191.73,40.53150039]
[1755469036769,5.21477259,191.77,191.74,3.42150039]
[1755469037400,0.72,191.78,191.75,18.52771596]
[1755469037401,5.21435085,191.78,191.75,18.52771596]
[1755469037586,0.06,191.8,191.77,18.52771596]
[1755469037793,0.06,191.8,191.79,3.42150039]
[1755469037975,0.06,191.8,191.79,18.52771596]
[1755469038179,0.06,191.8,191.79,19.18771596]
[1755469040677,0.06,191.8,191.79,18.52771596]
[1755469041175,0.06,191.8,191.79,19.18771596]
[1755469041601,0.06,191.8,191.79,18.52771596]
[1755469041775,0.06,191.8,191.79,19.18771596]
[1755469042391,0.06,191.8,191.79,18.52771596]
[1755469043201,0.06,191.8,191.79,19.18771596]
[1755469044517,0.06,191.8,191.79,18.52771596]
[1755469045208,0.06,191.8,191.79,15.10621557]
[1755469045384,0.06,191.8,191.79,50.92315575]
[1755469047411,0.06,191.8,191.79,53.01143775]
[1755469048120,0.06,191.8,191.79,90.07143775]
[1755469056022,0.06,191.8,191.79,64.07143775]
[1755469056807,0.06,191.84,191.83,26.0]
[1755469057143,0.06,191.85,191.84,15.10621557]
[1755469057332,0.06,191.85,191.84,19.70898368]
[1755469058022,0.06,191.85,191.84,17.71511129]
[1755469058221,0.78,191.85,191.84,20.61534396]
[1755469058423,0.78,191.85,191.84,25.82802119]
[1755469058628,0.06,191.85,191.84,25.82802119]
[1755469059347,0.06,191.85,191.84,26.48802119]
[1755469059505,0.06,191.89,191.84,26.48802119]
[1755469059506,0.06,191.89,191.84,49.81944883]
[1755469059712,0.06,191.91,191.9,26.0]
[1755469059942,0.06,191.93,191.91,15.10621557]
[1755469060117,0.06,191.93,191.91,23.73849184]
[1755469060432,0.06,191.93,191.91,26.48524884]
[1755469060636,0.06,191.93,191.92,56.74876639]
[1755469062026,0.06,191.93,191.92,61.95927076]
[1755469068242,0.06,191.93,191.92,64.04591876]
[1755469069041,0.06,191.93,191.92,63.38591876]
[1755469070945,0.76,191.93,191.92,18.52771596]
[1755469071139,0.76,191.93,191.92,55.52771596]
[1755469071844,0.76,191.93,191.92,55.55771596]
[1755469072029,0.76,191.93,191.92,52.13621557]
[1755469072214,0.76,191.93,191.92,55.55771596]
[1755469073318,0.76,191.93,191.92,37.03]
[1755469073524,5.97023289,191.93,191.92,37.03]
[1755469076119,5.97023289,191.93,191.92,0.03]
[1755469081134,0.06,191.93,191.92,18.55771596]
[1755469081341,5.97023289,191.93,191.92,18.55771596]
[1755469082065,0.06,191.93,191.92,18.55771596]
[1755469082224,0.06,191.93,191.92,19.23771596]
[1755469082666,0.06,191.93,191.92,24.44822033]
[1755469083346,0.06,191.93,191.92,23.76822033]
[1755469083568,0.76,191.93,191.92,55.53771596]
[1755469083940,0.06,191.93,191.92,55.53771596]
[1755469085238,0.06,191.95,191.92,55.53771596]
[1755469085429,0.06,191.95,191.94,44.52771596]
[1755469085630,0.06,191.95,191.94,81.50771596]
[1755469086352,0.06,191.95,191.94,82.18771596]
[1755469087831,0.06,191.95,191.94,81.50771596]
[1755469088032,0.76,191.95,191.94,78.08621557]
[1755469088234,0.76,191.95,191.94,81.50771596]
[1755469088552,0.76,191.95,191.94,44.52771596]
[1755469088742,0.76,191.95,191.94,81.50771596]
[1755469089860,5.96969002,191.95,191.94,78.08621557]
[1755469090246,0.76,191.95,191.94,81.50771596]
[1755469091260,0.76,191.95,191.92,0.03]
[1755469091261,9.39119041,191.95,191.92,0.03]
[1755469091459,3.42150039,191.94,191.93,36.98]
[1755469091636,0.7,191.94,191.92,37.01]
[1755469091965,0.7,191.93,191.92,37.01]
[1755469092334,5.91023289,191.93,191.92,37.01]
[1755469093342,9.33173328,191.93,191.92,0.03]
[1755469094648,9.33173328,191.93,191.9,0.03]
[1755469094848,3.42150039,191.91,191.9,0.03]
[1755469095252,6.91038976,191.91,191.9,0.03]
[1755469095457,4.10150039,191.91,191.9,0.03]
[1755469095767,7.59038976,191.91,191.9,0.03]
[1755469095954,9.31227627,191.91,191.88,0.03]
[1755469096160,3.42150039,191.89,191.88,0.03]
[1755469096551,4.10150039,191.89,191.88,0.03]
[1755469097658,0.68,191.89,191.88,0.03]
[1755469097835,5.89131898,191.89,191.88,0.03]
[1755469098545,3.49464741,191.91,191.89,15.10621557]
[1755469098870,5.21047153,191.93,191.89,15.10621557]
[1755469098871,5.21047153,191.93,191.9,3.42150039]
[1755469099367,5.89047153,191.93,191.9,3.42150039]
[1755469099562,0.68,191.92,191.9,3.42150039]
[1755469099746,5.89067478,191.92,191.89,3.42150039]
[1755469100144,5.89067478,191.92,191.9,3.42150039]
[1755469100351,5.89067478,191.92,191.89,15.10621557]
[1755469100352,5.89067478,191.92,191.89,18.52771596]
[1755469100869,5.21067478,191.92,191.89,18.52771596]
[1755469101172,5.89067478,191.92,191.9,3.42150039]
[1755469101341,5.89067478,191.92,191.89,15.10621557]
[1755469101342,5.89067478,191.92,191.89,18.52771596]
[1755469101544,0.68,191.91,191.88,3.45150039]
[1755469101755,5.89104742,191.9,191.88,3.45150039]
[1755469102147,5.21104742,191.9,191.88,3.45150039]
[1755469102874,5.89104742,191.9,191.88,0.03]
[1755469103054,0.68,191.89,191.88,0.03]
[1755469103866,5.89131898,191.89,191.88,0.03]
[1755469104366,5.21109793,191.9,191.88,0.03]
[1755469104966,5.89082502,191.91,191.88,0.03]
[1755469105166,0.06,191.93,191.89,18.52771596]
[1755469105371,0.06,191.93,191.91,3.42150039]
[1755469105546,0.06,191.93,191.9,0.71]
[1755469105858,5.95029118,191.93,191.9,3.42150039]
[1755469106061,0.68,191.92,191.89,3.42150039]
[1755469108354,5.21076198,191.92,191.9,3.42150039]
[1755469109275,5.2702954,191.93,191.91,0.71]
[1755469109572,5.2702954,191.93,191.91,4.13150039]
[1755469110378,0.06,191.93,191.91,3.42150039]
[1755469110759,0.68,191.92,191.89,36.96]
[1755469110980,0.06,191.93,191.89,40.38150039]
[1755469111180,0.74,191.93,191.89,41.09150039]
[1755469111355,0.06,191.93,191.9,3.42150039]
[1755469111552,0.06,191.93,191.91,4.13150039]
[1755469111963,0.06,191.93,191.91,3.42150039]
[1755469112552,0.06,191.93,191.92,4.13150039]
[1755469113182,0.06,191.93,191.92,19.23771596]
[1755469113684,0.06,191.93,191.9,15.10621557]
[1755469114068,0.06,191.93,191.9,18.52771596]
[1755469115796,0.06,191.93,191.89,66.38150039]
[1755469115962,0.68,191.92,191.89,62.96]
[1755469116500,0.06,191.93,191.89,62.96]
[1755469116686,0.74,191.93,191.89,62.96]
[1755469116863,0.74,191.93,191.89,63.67]
[1755469117056,0.06,191.93,191.91,3.42150039]
[1755469117472,0.06,191.93,191.9,15.10621557]
[1755469117780,0.06,191.93,191.9,19.23771596]
[1755469118363,0.06,191.93,191.91,3.42150039]
[1755469119187,0.74,191.93,191.9,15.10621557]
[1755469119352,0.74,191.93,191.9,3.42150039]
[1755469119561,0.74,191.93,191.89,66.38150039]
[1755469119758,0.06,191.93,191.89,67.09150039]
[1755469119959,0.06,191.93,191.9,3.42150039]
[1755469121079,5.27023289,191.93,191.9,3.42150039]
[1755469123695,0.06,191.93,191.92,18.52771596]
[1755469124009,0.06,191.93,191.92,56.19771596]
[1755469124794,0.06,191.93,191.92,36.96]
[1755469124970,0.06,191.93,191.91,3.42150039]
[1755469125176,0.06,191.93,191.92,19.24771596]
[1755469125596,0.06,191.93,191.92,24.45822033]
[1755469125799,0.06,191.93,191.92,50.45822033]
[1755469126491,0.06,191.93,191.92,87.39822033]
[1755469126794,0.06,191.93,191.92,61.91927076]
[1755469127004,0.06,191.95,191.94,41.10621557]
[1755469127201,0.06,191.97,191.95,15.10621557]
[1755469127385,0.06,191.97,191.96,55.98865782]
[1755469127583,0.06,191.97,191.96,61.91807644]
[1755469127787,0.06,191.97,191.96,61.39713458]
[1755469135583,0.06,191.97,191.96,56.18771596]
[1755469135786,0.06,191.97,191.96,55.46771596]
[1755469137104,0.06,191.97,191.96,18.52771596]
[1755469137428,0.75,191.97,191.96,55.44771596]
[1755469137722,0.75,191.97,191.96,36.92]
[1755469138910,5.95914726,191.97,191.94,3.42150039]
[1755469139085,0.69,191.96,191.95,36.92]
[1755469140607,9.32091901,191.96,191.92,0.03]
[1755469140784,3.42150039,191.94,191.92,36.95]
[1755469141128,0.69,191.94,191.92,36.95]
[1755469141303,5.95919087,191.97,191.93,18.52771596]
[1755469141499,5.95919087,191.97,191.94,40.34150039]
[1755469141702,5.95919087,191.97,191.96,3.42150039]
[1755469141703,0.06,191.97,191.96,3.42150039]
[1755469141888,0.06,191.97,191.96,40.34150039]
[1755469142699,0.06,191.97,191.96,36.92]
[1755469142907,0.06,191.97,191.96,40.34150039]
[1755469143117,0.75,191.97,191.96,40.34150039]
[1755469143300,0.06,191.97,191.96,40.34150039]
[1755469143520,0.75,191.97,191.96,36.92]
[1755469143922,0.75,191.97,191.95,36.92]
[1755469144115,0.69,191.96,191.95,36.92]
[1755469144612,5.89941862,191.96,191.95,36.92]
[1755469145638,0.06,191.97,191.95,40.34150039]
[1755469145806,0.06,191.97,191.96,18.52771596]
[1755469148011,0.75,191.97,191.94,36.92]
[1755469148219,0.69,191.96,191.94,36.92]
[1755469148413,0.06,191.97,191.94,40.34150039]
[1755469148610,0.06,191.97,191.95,18.52771596]
[1755469148809,0.06,191.97,191.96,36.92]
[1755469149341,0.75,191.97,191.96,36.92]
[1755469150532,5.95914726,191.97,191.96,36.92]
[1755469150730,5.95914726,191.97,191.95,15.10621557]
[1755469150917,5.95914726,191.97,191.95,52.02621557]
[1755469151738,5.26914726,191.97,191.95,36.92]
[1755469151932,5.26914726,191.97,191.93,29.42150039]
[1755469151933,0.69,191.96,191.93,62.92]
[1755469152130,8.69064765,191.97,191.93,62.92]
[1755469152339,0.69,191.95,191.93,62.92]
[1755469153239,8.69064765,191.97,191.93,62.92]
[1755469153418,0.69,191.96,191.93,62.92]
[1755469153923,5.89958746,191.96,191.93,62.92]
[1755469154132,5.20958746,191.96,191.93,66.34150039]
[1755469154332,5.20958746,191.96,191.95,0.03]
[1755469155814,5.88958746,191.96,191.95,0.03]
[1755469160917,0.06,191.97,191.95,0.03]
[1755469161129,0.06,191.97,191.95,41.05150039]
[1755469162264,0.06,191.97,191.95,40.37150039]
[1755469162424,0.06,191.97,191.95,36.95]
[1755469162831,0.68,191.96,191.95,36.95]
[1755469165057,0.06,191.97,191.95,36.95]
[1755469165254,0.68,191.96,191.95,36.95]
[1755469166436,3.55252493,191.97,191.95,36.95]
[1755469166989,0.06,191.97,191.96,3.42150039]
[1755469167278,0.06,191.97,191.96,4.10150039]
[1755469168530,0.06,191.97,191.95,40.37150039]
[1755469168733,0.68,191.96,191.95,36.95]
[1755469168936,0.06,191.97,191.95,36.95]
[1755469169161,0.74,191.97,191.95,36.95]
[1755469169362,0.74,191.97,191.95,37.63]
[1755469169363,0.06,191.97,191.95,37.63]
[1755469169560,0.06,191.97,191.95,41.05150039]
[1755469169808,0.74,191.97,191.95,36.95]
[1755469169936,0.06,191.97,191.95,36.95]
[1755469170361,0.06,191.97,191.96,18.52771596]
[1755469170569,0.06,191.96,191.95,36.95]
[1755469170776,0.06,191.96,191.95,55.47771596]
[1755469170972,0.06,191.96,191.95,52.05621557]
[1755469171189,0.06,191.96,191.95,56.15771596]
[1755469171757,0.06,191.96,191.95,36.95]
[1755469172455,0.06,191.96,191.95,52.73621557]
[1755469172661,0.06,191.96,191.95,56.15771596]
[1755469172873,0.06,191.96,191.95,55.47771596]
[1755469173085,0.06,191.96,191.95,52.05621557]
[1755469173290,0.06,191.96,191.95,56.15771596]
[1755469175982,0.06,191.96,191.95,52.73621557]
[1755469176151,0.06,191.96,191.95,56.15771596]
[1755469176990,0.06,191.96,191.95,0.03]
[1755469177302,0.06,191.96,191.95,81.45771596]
[1755469177514,0.06,191.96,191.95,82.13771596]
[1755469179398,0.06,191.96,191.95,78.03621557]
[1755469179592,0.06,191.96,191.95,81.45771596]
[1755469180016,0.74,191.96,191.95,78.03621557]
[1755469180321,0.74,191.96,191.95,62.93]
[1755469180825,4.25009986,191.96,191.95,36.93]
[1755469181196,9.45951848,191.96,191.95,0.03]
[1755469181401,12.88101887,191.96,191.95,0.03]
[1755469181705,16.78418715,191.96,191.95,0.03]
[1755469182703,16.78418715,191.96,191.95,1e-08]
[1755469182704,53.68418715,191.96,191.95,1e-08]
[1755469182887,55.6360916,191.96,191.95,1e-08]
[1755469183206,55.6360916,191.96,191.93,0.03]
[1755469183414,3.42150039,191.94,191.93,0.03]
[1755469183616,15.22419313,191.94,191.93,0.03]
[1755469183805,15.90419313,191.94,191.93,0.03]
[1755469184212,16.72472997,191.94,191.93,0.03]
[1755469184935,16.72159266,191.94,191.93,0.03]
[1755469185927,12.62009227,191.94,191.93,0.03]
[1755469187132,8.7200613,191.94,191.93,0.03]
[1755469187334,12.80156169,191.94,191.93,0.03]
[1755469187521,16.69877576,191.94,191.93,0.03]
[1755469187717,21.08820036,191.94,191.91,0.03]
[1755469187911,3.42150039,191.92,191.91,0.03]
[1755469188109,16.03931869,191.92,191.91,0.03]
[1755469188329,16.69931869,191.92,191.91,0.03]
[1755469190923,12.80210462,191.92,191.91,0.03]
[1755469191949,8.72060423,191.92,191.91,0.03]
[1755469192316,36.9,191.93,191.91,0.03]
[1755469192317,5.21028152,191.93,191.91,4.12150039]
[1755469192655,5.21028152,191.93,191.92,0.67]
[1755469192817,5.21028152,191.93,191.91,0.03]
[1755469193546,5.20996144,191.94,191.91,0.03]
[1755469195230,5.86996144,191.94,191.91,0.03]
[1755469196914,3.50090508,191.95,191.92,3.42150039]
[1755469197241,0.06,191.96,191.94,3.42150039]
[1755469197757,0.06,191.96,191.95,19.19771596]
[1755469200625,0.06,191.96,191.95,57.88590559]
[1755469201028,0.06,191.97,191.96,15.10621557]
[1755469201354,0.06,191.99,191.98,41.10621557]
[1755469201527,0.06,192.05,191.99,15.10621557]
[1755469201833,0.06,192.05,192.01,15.10621557]
[1755469202158,0.06,192.05,192.04,41.10621557]
[1755469202365,3.49591714,192.16,192.13,15.10621557]
[1755469202569,0.2,192.17,192.15,3.42150039]
[1755469202770,0.2,192.17,192.16,18.52771596]
[1755469202943,0.2,192.17,192.16,15.77621557]
[1755469203276,0.2,192.17,192.16,19.19771596]
[1755469204066,0.2,192.17,192.16,15.10621557]
[1755469204385,0.2,192.17,192.11,37.72053511]
[1755469204386,0.2,192.17,192.14,26.0]
[1755469204677,5.40390889,192.17,192.14,26.0]
[1755469204858,0.66,192.16,192.14,26.0]
[1755469205364,5.97063287,192.15,192.1,15.10621557]
[1755469205551,0.66,192.14,192.09,15.10621557]
[1755469205750,0.66,192.14,192.1,5.31063287]
[1755469205953,5.97063287,192.14,192.09,21.08684844]
[1755469206269,5.86480779,192.14,192.09,21.08684844]
[1755469206460,11.17544066,192.14,192.09,21.08684844]
[1755469206643,11.17544066,192.14,192.09,15.77621557]
[1755469206844,11.17544066,192.14,192.09,21.08684844]
[1755469207050,11.17544066,192.14,192.09,15.77621557]
[1755469207248,11.17544066,192.14,192.09,21.08684844]
[1755469207436,0.2,192.17,192.11,5.31063287]
[1755469207642,5.20421402,192.16,192.13,5.31063287]
[1755469207864,5.20421402,192.16,192.12,20.41684844]
[1755469208163,5.86421402,192.16,192.12,20.41684844]
[1755469208341,0.66,192.15,192.12,20.41684844]
[1755469208540,5.20421402,192.16,192.12,20.41684844]
[1755469208541,0.66,192.14,192.12,15.10621557]
[1755469209368,5.20421402,192.16,192.12,15.10621557]
[1755469209563,5.20421402,192.16,192.12,20.41684844]
[1755469209961,5.20421402,192.16,192.12,15.10621557]
[1755469210172,0.66,192.15,192.12,15.10621557]
[1755469210350,5.20453835,192.14,192.12,15.10621557]
[1755469210755,5.20426249,192.16,192.09,15.10621557]
[1755469210945,5.20426249,192.16,192.12,15.10621557]
[1755469210946,11.17489536,192.16,192.12,15.10621557]
[1755469211146,0.66,192.15,192.12,15.10621557]
[1755469211978,5.20426249,192.16,192.1,15.10621557]
[1755469212156,0.2,192.17,192.14,15.10621557]
[1755469212553,0.2,192.17,192.14,20.41684844]
[1755469212747,5.40385265,192.17,192.14,20.41684844]
[1755469213271,0.2,192.17,192.16,5.31063287]
[1755469213476,0.2,192.17,192.16,5.98063287]
[1755469213652,0.2,192.17,192.16,21.08684844]
[1755469214182,0.2,192.17,192.16,15.77621557]
[1755469214378,0.2,192.17,192.16,21.08684844]
[1755469215676,0.2,192.17,192.16,58.15684844]
[1755469215870,0.2,192.17,192.13,0.7]
[1755469216049,6.1137275,192.17,192.14,15.10621557]
[1755469216248,0.2,192.17,192.14,15.10621557]
[1755469216482,0.2,192.17,192.14,0.7]
[1755469216979,0.2,192.17,192.16,5.31063287]
[1755469217182,0.2,192.17,192.16,20.41684844]
[1755469217357,0.2,192.17,192.15,26.0]
[1755469217559,0.2,192.17,192.16,26.0]
[1755469218363,11.42435873,192.17,192.13,15.10621557]
[1755469218560,6.02063287,192.16,192.13,15.10621557]
[1755469218969,5.31063287,192.15,192.12,37.74]
[1755469219165,6.02063287,192.15,192.12,37.74]
[1755469219366,5.31063287,192.15,192.12,37.74]
[1755469219962,5.31063287,192.13,192.12,37.74]
[1755469220369,5.91474705,192.14,192.12,37.74]
[1755469220684,5.31063287,192.15,192.12,37.74]
[1755469221380,0.2,192.17,192.14,15.10621557]
[1755469221868,0.2,192.17,192.15,0.7]
[1755469222068,0.2,192.17,192.13,21.11684844]
[1755469222365,0.2,192.17,192.14,0.7]
[1755469223285,5.4037949,192.17,192.13,15.10621557]
[1755469223491,0.2,192.17,192.13,15.10621557]
[1755469223658,0.2,192.17,192.13,15.80621557]
[1755469223851,0.2,192.17,192.14,0.7]
[1755469224655,5.40381133,192.17,192.13,15.10621557]
[1755469224966,6.02063287,192.16,192.12,63.74]
[1755469225282,0.2,192.17,192.14,5.31063287]
[1755469225484,0.2,192.17,192.13,20.41684844]
[1755469225694,0.2,192.17,192.13,21.11684844]
[1755469225860,0.2,192.17,192.14,0.7]
[1755469226061,0.2,192.17,192.14,6.01063287]
[1755469226301,0.2,192.17,192.15,0.7]
[1755469227294,5.40380114,192.17,192.13,15.80621557]
[1755469227773,6.02063287,192.16,192.12,63.74]
[1755469228170,5.31063287,192.15,192.12,63.74]
[1755469228377,4.12473813,192.16,192.12,63.74]
[1755469228590,8.61879886,192.16,192.12,64.44]
[1755469228805,5.20406073,192.16,192.12,64.44]
[1755469229303,0.2,192.17,192.16,41.10621557]
[1755469229466,0.2,192.17,192.16,82.9409537]
[1755469230076,0.2,192.17,192.16,79.52621557]
[1755469230899,0.2,192.17,192.16,78.82621557]
[1755469231086,11.42286146,192.17,192.14,26.0]
[1755469231289,0.71,192.16,192.14,26.0]
[1755469231497,5.3091356,192.16,192.14,26.0]
[1755469231705,6.0191356,192.15,192.13,37.68]
[1755469231931,6.0191356,192.14,192.08,0.7]
[1755469232212,5.3091356,192.12,192.1,37.72]
[1755469233012,6.0191356,192.11,192.08,37.72]
[1755469233179,5.3091356,192.1,192.08,37.72]
[1755469233504,5.20528828,192.12,192.05,37.72]
[1755469233505,6.0191356,192.09,192.05,37.72]
[1755469233810,5.3091356,192.08,192.07,26.0]
[1755469235689,5.91612441,192.09,192.07,26.0]
[1755469235886,11.22526001,192.09,192.07,26.0]
[1755469237799,5.20612441,192.09,192.07,26.0]
[1755469238097,10.51526001,192.09,192.07,26.0]
[1755469238287,5.20612441,192.09,192.07,26.0]
[1755469238892,5.20612441,192.09,192.07,26.7]
[1755469239089,5.20612441,192.09,192.08,0.7]
[1755469239508,5.20612441,192.09,192.07,26.0]
[1755469239808,5.20612441,192.09,192.07,26.7]
[1755469239982,5.20508015,192.12,192.07,26.7]
[1755469240190,11.22421575,192.12,192.07,26.7]
[1755469240910,5.3091356,192.11,192.07,26.7]
[1755469241112,5.20562207,192.1,192.07,26.7]
[1755469242415,8.67755861,192.1,192.08,0.7]
[1755469242804,8.67755861,192.1,192.07,26.0]
[1755469243113,8.67755861,192.1,192.07,26.7]
[1755469243409,13.72143017,192.14,192.08,38.36]
[1755469243410,8.67799611,192.09,192.08,38.36]
[1755469243712,5.20605957,192.09,192.08,37.66]
[1755469243920,5.20605957,192.09,192.06,6.0091356]
[1755469243921,13.98713171,192.09,192.06,26.7]
[1755469244135,10.51519517,192.09,192.08,37.66]
[1755469244432,14.00933058,192.09,192.07,37.66]
[1755469244589,3.49413541,192.08,192.07,37.66]
[1755469245992,8.7002995,192.08,192.07,37.66]
[1755469246798,8.7002995,192.08,192.07,63.62]
[1755469248034,8.7002995,192.08,192.07,26.0]
[1755469248236,5.20616409,192.08,192.07,63.62]
[1755469248411,8.7002995,192.08,192.07,63.62]
[1755469248764,5.20616409,192.08,192.07,63.6]
[1755469248905,18.61336754,192.08,192.04,0.03]
[1755469249112,5.3091356,192.05,192.04,0.03]
[1755469249298,8.80327101,192.05,192.04,0.03]
[1755469249634,9.52327101,192.05,192.04,1e-08]
[1755469249842,13.40662727,192.05,192.04,1e-08]
[1755469250338,11.5179986,192.05,192.04,1e-08]
[1755469250841,16.72497594,192.05,192.04,1e-08]
[1755469251417,12.84161968,192.05,192.04,1e-08]
[1755469252328,13.42050693,192.12,192.04,1e-08]
[1755469252329,4.3894246,192.12,192.07,26.0]
[1755469252555,5.20449623,192.15,192.11,44.5267225]
[1755469252757,5.20449623,192.15,192.11,45.1967225]
[1755469252962,3.42050693,192.14,192.11,26.0]
[1755469253274,0.72,192.13,192.09,37.56]
[1755469253443,4.14050693,192.13,192.09,37.56]
[1755469253642,3.42050693,192.13,192.09,37.56]
[1755469253871,5.92449623,192.15,192.09,40.98050693]
[1755469254038,3.68966691,192.17,192.11,3.42050693]
[1755469254241,3.62050693,192.17,192.12,0.67]
[1755469254442,5.31154237,192.13,192.06,26.0]
[1755469254665,5.31154237,192.09,192.06,26.0]
[1755469254969,10.51751867,192.09,192.06,26.0]
[1755469255342,5.31154237,192.1,192.06,26.0]
[1755469255570,5.31154237,192.1,192.06,26.67]
[1755469255763,5.2053511,192.11,192.07,15.77621557]
[1755469255764,10.51689347,192.11,192.07,15.77621557]
[1755469256289,5.2053511,192.11,192.07,15.77621557]
[1755469256445,10.51689347,192.11,192.07,15.77621557]
[1755469256848,13.73175625,192.14,192.07,15.77621557]
[1755469256849,5.20480924,192.13,192.07,15.77621557]
[1755469257064,5.31154237,192.11,192.07,15.77621557]
[1755469257969,10.51704462,192.11,192.07,15.77621557]
[1755469258559,5.20550225,192.11,192.07,15.77621557]
[1755469260581,5.31154237,192.1,192.06,26.03]
[1755469260792,6.03154237,192.1,192.06,26.03]
[1755469262059,5.20589307,192.09,192.06,26.03]
[1755469262383,5.20589307,192.09,192.06,0.03]
[1755469262384,5.31154237,192.07,192.06,0.03]
[1755469262956,5.20589307,192.09,192.06,0.03]
[1755469263469,11.23743544,192.09,192.06,0.03]
[1755469263988,5.92589307,192.09,192.06,0.03]
[1755469264188,11.23743544,192.09,192.06,0.03]
[1755469264897,6.03154237,192.08,192.06,0.03]
[1755469265259,5.20589307,192.09,192.06,0.03]
[1755469265260,10.51743544,192.09,192.06,0.03]
[1755469265889,5.92589307,192.09,192.06,0.03]
[1755469266086,10.51743544,192.09,192.06,0.03]
[1755469266457,5.31154237,192.08,192.06,0.03]
[1755469266659,6.03154237,192.08,192.06,0.03]